fUSD/lending_fUSD_20240920
["ID","MTS","AMOUNT","RATE_DAILY","PERIOD"]
[338683296,1726869627791,482.46,0.00011781,2]
[338683298,1726869634892,305.94,9.863e-05,2]
[338683299,1726869687191,321.65,0.00011781,2]
[338683301,1726869710322,200.0,0.000118,2]
[338683302,1726869722868,167.08,0.0001178,2]
[338683303,1726869768817,250.0,0.0001178,2]
[338683304,1726869824484,186.76,0.00010959,2]
[338683305,1726869846642,250.0,0.00011779,2]
[338683306,1726869884303,500.0,0.00011041,2]
[338683307,1726869932124,500.0,0.00011041,2]
[338683308,1726869932347,500.0,0.00011041,2]
[338683309,1726869951779,191.93,0.00011782,2]
[338683310,1726869992740,250.0,0.00011782,2]
[338683311,1726870009334,-256.03381823,0.00012127,2]
[338683312,1726870073320,278.87,0.000149,31]
[338683313,1726870073365,278.87,0.000149,31]
[338683314,1726870073436,278.87,0.000149,31]
[338683315,1726870073497,278.87,0.000149,31]
[338683316,1726870073558,278.87,0.000149,31]
[338683317,1726870073614,278.87,0.000149,31]
[338683318,1726870073675,278.87,0.000149,31]
[338683319,1726870073765,278.87,0.000149,31]
[338683320,1726870073819,278.87,0.000149,31]
[338683321,1726870073860,278.87,0.000149,31]
[338683322,1726870074115,278.87,0.000149,31]
[338683323,1726870074145,278.87,0.000149,31]
[338683324,1726870074174,278.87,0.000149,31]
[338683325,1726870074208,278.87,0.000149,31]
[338683326,1726870074242,278.87,0.000149,31]
[338683327,1726870074271,278.87,0.000149,31]
[338683328,1726870080012,465.87,0.00011871,2]
[338683330,1726870132380,466.48023641,0.00011041,2]
[338683331,1726870152102,-49.90618177,0.00012127,2]
[338683332,1726870152124,-470.25212655,0.00012411,2]
[338683333,1726870198379,320.22,9.842e-05,2]
[338683336,1726870231430,-320.22,0.00012105,2]
[338683337,1726870231439,-29.74787345,0.00012411,2]
[338683338,1726870231449,-155.0,0.0001252,2]
[338683339,1726870231458,-300.0,0.00012562,2]
[338683340,1726870231467,-368.48266502,0.00012592,2]
[338683341,1726870231476,-150.0,0.00012594,2]
[338683342,1726870231485,-70445.8397,0.000126,2]
[338683343,1726870231494,-1004.0,0.000126,2]
[338683344,1726870231503,-150.0,0.00012606,2]
[338683345,1726870231512,-150.0,0.00012612,2]
[338683346,1726870231521,-150.0,0.00012613,2]
[338683347,1726870231530,-150.0,0.00012619,2]
[338683348,1726870231539,-943.2558,0.00012621,2]
[338683349,1726870231548,-150.0,0.00012645,2]
[338683350,1726870231557,-2306.9128,0.000127,2]
[338683351,1726870231567,-150.0,0.00012716,2]
[338683352,1726870231576,-10516.75654772,0.00012721,2]
[338683353,1726870231595,-2953.720463,0.00012721,2]
[338683354,1726870231607,-460.43123519,0.00012721,2]
[338683355,1726870231821,-1525.1233529,0.00012721,2]
[338683356,1726870231838,-290.832,0.00012721,2]
[338683360,1726870237441,-267.7675,0.00012721,2]
[338683381,1726870239417,-19208.26190119,0.00012721,2]
[338683382,1726870239427,-500.0,0.00012723,2]
[338683383,1726870239437,-200.0,0.00012723,2]
[338683384,1726870239446,-2181.83338342,0.00012725,2]
[338683385,1726870239456,-622.7354,0.00012725,2]
[338683386,1726870239466,-16945.639,0.00012725,2]
[338683387,1726870239475,-1872.8679,0.00012725,2]
[338683388,1726870239484,-7500.0,0.00012726,2]
[338683389,1726870239493,-150.02062703,0.00012726,2]
[338683390,1726870239502,-248.30695244,0.00012726,2]
[338683391,1726870239511,-315.68647347,0.00012726,2]
[338683392,1726870239521,-441.49383693,0.00012726,2]
[338683393,1726870239530,-150.0,0.00012727,2]
[338683394,1726870239539,-150.0,0.00012741,2]
[338683395,1726870239548,-2181.83338342,0.00012744,2]
[338683396,1726870239558,-248.30695241,0.00012751,2]
[338683397,1726870239567,-2181.83338342,0.00012764,2]
[338683398,1726870239577,-248.30695241,0.00012776,2]
[338683399,1726870239586,-150.0,0.00012783,2]
[338683400,1726870239596,-2181.83338342,0.00012783,2]
[338683401,1726870239605,-233.091813,0.00012795,2]
[338683402,1726870239614,-233.091813,0.00012796,2]
[338683403,1726870239623,-233.091813,0.00012797,2]
[338683404,1726870239633,-233.091813,0.00012798,2]
[338683405,1726870239642,-2000.0,0.000128,2]
[338683406,1726870239651,-248.30695241,0.00012801,2]
[338683407,1726870239660,-150.0,0.00012801,2]
[338683408,1726870239669,-2181.83338342,0.00012803,2]
[338683409,1726870239678,-315.68647346,0.00012813,2]
[338683410,1726870239687,-441.49383692,0.00012813,2]
[338683411,1726870239696,-153.43,0.00012816,2]
[338683412,1726870239705,-4619.046403,0.00012821,2]
[338683413,1726870239714,-28506.5967131,0.00012821,2]
[338683414,1726870239724,-1694.6136121,0.00012821,2]
[338683415,1726870239733,-2181.83338342,0.00012822,2]
[338683416,1726870239742,-150.2452645,0.00012825,2]
[338683417,1726870239752,-200.0,0.00012825,2]
[338683418,1726870239761,-2000.0,0.00012825,2]
[338683419,1726870239770,-248.30695241,0.00012825,2]
[338683420,1726870239779,-253573.49792782,0.00012825,2]
[338683421,1726870239788,-5513106.19733016,0.00012826,2]
[338683422,1726870239799,-214010.35979913,0.00012826,2]
[338683423,1726870239810,-503.33,0.00012826,2]
[338683424,1726870239821,-179184.21562081,0.00012826,2]
[338683425,1726870239836,-429.15446819,0.00012826,2]
[338683426,1726870239847,-2396.58360006,0.00012826,2]
[338683427,1726870239866,-66886.30633159,0.00012826,2]
[338683428,1726870239877,-5227.0184741,0.00012826,2]
[338683429,1726870239888,-552.33090042,0.00012826,2]
[338683430,1726870239904,-2439.14814662,0.00012826,2]
[338683431,1726870241238,241.23,0.00011808,2]
[338683444,1726870242435,-2961.33869141,0.00012826,2]
[338683445,1726870242522,-1795.66259684,0.00012826,2]
[338683446,1726870242612,-18061.65755456,0.00012826,2]
[338683447,1726870242702,-6837.24999967,0.00012826,2]
[338683448,1726870242714,-2851.5,0.00012826,2]
[338683449,1726870242725,-1012.97035628,0.00012826,2]
[338683450,1726870242740,-680.06549859,0.00012826,2]
[338683451,1726870242754,-2971.4261541,0.00012826,2]
[338683452,1726870242765,-953.70061537,0.00012826,2]
[338683453,1726870242775,-20492.59590905,0.00012826,2]
[338683454,1726870242786,-1289.41102724,0.00012826,2]
[338683466,1726870245332,-389.71569304,0.00012826,2]
[338683468,1726870245344,-290.929047,0.00012826,2]
[338683480,1726870245451,-332.78,0.00012826,2]
[338683482,1726870245462,-407.37144464,0.00012826,2]
[338683485,1726870245477,-1583.93695145,0.00012826,2]
[338683486,1726870245488,-1131.90187909,0.00012826,2]
[338683494,1726870245557,-1144.25759762,0.00012826,2]
[338683496,1726870245568,-1523.78274965,0.00012826,2]
[338683505,1726870245645,-89270.32908214,0.00012826,2]
[338683507,1726870245659,-529.5997487,0.00012826,2]
[338683529,1726870289352,153.31517476,0.00011041,2]
[338683530,1726870298748,250.0,0.00011972,2]
[338683531,1726870302625,746.12,0.00011958,2]
[338683532,1726870308659,500.0,0.00011041,2]
[338683533,1726870311639,500.0,0.00011041,2]
[338683534,1726870314188,500.0,0.00011041,2]
[338683535,1726870374096,158.39,0.0001194,2]
[338683536,1726870374299,158.39,0.00011947,2]
[338683537,1726870374496,158.39,0.00011953,2]
[338683538,1726870374711,158.39,0.0001196,2]
[338683539,1726870374960,158.39,0.00011966,2]
[338683540,1726870375173,158.39,0.00011973,2]
[338683541,1726870375383,158.39,0.0001198,2]
[338683542,1726870375599,158.39,0.00011986,2]
[338683543,1726870375830,158.39,0.00011993,2]
[338683544,1726870376063,158.39,0.00012,2]
[338683545,1726870377822,151.0,0.00011041,2]
[338683546,1726870378140,298.0,0.00011041,2]
[338683547,1726870403621,500.0,0.00011041,2]
[338683548,1726870409438,162.51,0.00010959,2]
[338683549,1726870426971,500.0,0.00011041,2]
[338683550,1726870474338,245.54,0.00011909,2]
[338683551,1726870481018,250.0,0.00011909,2]
[338683552,1726870680503,600.0,0.00011041,2]
[338683553,1726870685247,727.68,0.000149,31]
[338683554,1726870685310,727.68,0.000149,31]
[338683555,1726870685358,727.68,0.000149,31]
[338683556,1726870685420,727.68,0.000149,31]
[338683557,1726870685479,727.68,0.000149,31]
[338683558,1726870685543,727.68,0.000149,31]
[338683559,1726870685602,727.68,0.000149,31]
[338683560,1726870685657,727.68,0.000149,31]
[338683561,1726870685733,727.68,0.000149,31]
[338683562,1726870685794,727.68,0.000149,31]
[338683563,1726870685832,727.68,0.000149,31]
[338683564,1726870685903,727.68,0.000149,31]
[338683565,1726870685961,727.68,0.000149,31]
[338683566,1726870686023,727.68,0.000149,31]
[338683567,1726870686081,727.68,0.000149,31]
[338683568,1726870686147,727.68,0.000149,31]
[338683569,1726870694512,500.0,0.00011041,2]
[338683570,1726870751920,500.0,0.00011041,2]
[338683571,1726870755180,233.091813,0.00012795,119]
[338683572,1726870828450,216.14,0.00011825,2]
[338683573,1726870835657,1050.0,0.00011,2]
[338683574,1726870837922,160.0,0.00011825,2]
[338683575,1726870851688,331.55,9.908e-05,2]
[338683577,1726870935469,250.0,0.000118,2]
[338683578,1726870975762,176.97,0.00010959,2]
[338683579,1726870980438,297.86,0.00011789,2]
[338683581,1726871045934,250.0,0.00011794,2]
[338683582,1726871064937,515.81342883,0.00011976,2]
[338683583,1726871105264,185.06,0.00011785,2]
[338683585,1726871116116,150.0,0.00011688,2]
[338683587,1726871167790,250.0,0.0001179,2]
[338683588,1726871244131,388.55,0.00010959,2]
[338683589,1726871265046,883.09,0.00010959,2]
[338683590,1726871297265,611.31,0.000149,31]
[338683591,1726871297332,611.31,0.000149,31]
[338683592,1726871297381,611.31,0.000149,31]
[338683593,1726871297467,611.31,0.000149,31]
[338683594,1726871297519,611.31,0.000149,31]
[338683595,1726871297570,611.31,0.000149,31]
[338683596,1726871297626,611.31,0.000149,31]
[338683597,1726871297694,611.31,0.000149,31]
[338683598,1726871297746,611.31,0.000149,31]
[338683599,1726871297809,611.31,0.000149,31]
[338683600,1726871297868,611.31,0.000149,31]
[338683601,1726871297937,611.31,0.000149,31]
[338683602,1726871297998,611.31,0.000149,31]
[338683603,1726871298052,611.31,0.000149,31]
[338683604,1726871298115,611.31,0.000149,31]
[338683605,1726871298184,611.31,0.000149,31]
[338683612,1726871348994,752.1,0.00011805,2]
[338683613,1726871358140,-2474.857308,0.00012075,2]
[338683614,1726871369215,-6905.62539044,0.00012075,2]
[338683615,1726871369238,-840.0,0.00012077,2]
[338683616,1726871369260,-331.55,0.00012172,2]
[338683617,1726871369283,-600.0,0.00012411,2]
[338683618,1726871369304,-500.0,0.00012411,2]
[338683619,1726871369326,-1124.52755371,0.000125,2]
[338683624,1726871374578,872.0,0.00011824,2]
[338683625,1726871396976,391.8933,0.00011975,2]
[338683628,1726871398722,371.76,0.00011822,2]
[338683629,1726871398994,500.0,0.00011041,2]
[338683630,1726871403759,500.0,0.00011041,2]
[338683644,1726871437765,-500.0,0.00012411,2]
[338683645,1726871437775,-500.0,0.00012411,2]
[338683646,1726871437784,-241.05,0.000125,2]
[338683647,1726871437801,-93.42244629,0.000125,2]
[338683648,1726871437810,-150.0,0.00012563,2]
[338683649,1726871437819,-150.0,0.00012587,2]
[338683650,1726871437829,-818.99,0.00012629,2]
[338683651,1726871437839,-150.0,0.00012661,2]
[338683652,1726871437849,-1181.89403617,0.00012661,2]
[338683653,1726871437860,-815.0,0.00012661,2]
[338683654,1726871437889,-704.83596383,0.00012661,2]
[338683655,1726871437898,-300.0,0.00012688,2]
[338683656,1726871437907,-150.0,0.00012689,2]
[338683657,1726871437917,-1068.16403616,0.00012689,2]
[338683658,1726871437928,-587.5728,0.00012689,2]
[338683659,1726871437939,-2139.68316384,0.00012689,2]
[338683661,1726871437951,-2175.29700982,0.00012689,2]
[338683815,1726871439632,-344.62556429,0.00012689,2]
[338683824,1726871439712,-355.46499825,0.00012689,2]
[338683827,1726871439723,-1043.21965598,0.00012689,2]
[338683829,1726871439734,-1847.22277166,0.00012689,2]
[338683831,1726871439744,-483.48,0.00012689,2]
[338683832,1726871439754,-1930.1682,0.000127,2]
[338683833,1726871439764,-1000.0,0.00012721,2]
[338683835,1726871439774,-500.0,0.00012723,2]
[338683837,1726871439783,-200.0,0.00012723,2]
[338683839,1726871439792,-186.23021433,0.00012726,2]
[338683840,1726871439801,-10998.2040969,0.0001278,2]
[338683841,1726871439816,-676.78766256,0.0001278,2]
[338683842,1726871439827,-900.71549999,0.0001278,2]
[338683843,1726871439839,-1064.4559759,0.0001278,2]
[338684106,1726871442655,-12101.7552,0.0001278,2]
[338684108,1726871442669,-666.41,0.0001278,2]
[338684110,1726871442681,-2698.46386355,0.0001278,2]
[338684112,1726871442691,-186.2302143,0.00012784,2]
[338684114,1726871442701,-150.0,0.00012789,2]
[338684116,1726871442710,-233.091813,0.00012795,2]
[338684118,1726871442719,-233.091813,0.00012796,2]
[338684120,1726871442730,-233.091813,0.00012797,2]
[338684122,1726871442739,-233.091813,0.00012798,2]
[338684124,1726871442750,-150.0,0.000128,2]
[338684126,1726871442759,-428.14,0.000128,2]
[338684128,1726871442769,-150.0,0.000128,2]
[338684130,1726871442779,-25.5439744,0.000128,2]
[338684134,1726871442810,-124.4560256,0.000128,2]
[338684136,1726871442820,-150.0,0.000128,2]
[338684138,1726871442830,-150.0,0.000128,2]
[338684140,1726871442840,-883.803,0.00012801,2]
[338684142,1726871442850,-151.56,0.00012801,2]
[338684144,1726871442860,-150.0,0.00012804,2]
[338684146,1726871442870,-150.0,0.00012819,2]
[338684148,1726871442879,-609.4847978,0.00012821,2]
[338684150,1726871442890,-25004.4203306,0.00012821,2]
[338684152,1726871442900,-8399.2961923,0.00012821,2]
[338684154,1726871442909,-1000.0,0.00012821,2]
[338684156,1726871442918,-1000.0,0.00012821,2]
[338684158,1726871442928,-1000.0,0.00012821,2]
[338684160,1726871442937,-1000.0,0.00012821,2]
[338684162,1726871442947,-1000.0,0.00012821,2]
[338684164,1726871442958,-1000.0,0.00012821,2]
[338684166,1726871442967,-1000.0,0.00012821,2]
[338684168,1726871442977,-1000.0,0.00012821,2]
[338684170,1726871442987,-150.2452645,0.00012825,2]
[338684172,1726871442996,-41558.70485349,0.00012826,2]
[338684174,1726871443007,-1020.15215074,0.00012826,2]
[338684176,1726871443019,-2350.89459176,0.00012826,2]
[338684178,1726871443031,-22528.85265892,0.00012826,2]
[338684180,1726871443043,-5130.95572728,0.00012826,2]
[338684183,1726871443057,-1507.29,0.00012826,2]
[338684185,1726871443068,-4027.00130018,0.00012826,2]
[338684187,1726871443080,-1039.9999,0.00012826,2]
[338684189,1726871443092,-877.60613837,0.00012826,2]
[338684191,1726871443103,-1448.63415379,0.00012826,2]
[338684193,1726871443114,-498.7999998,0.00012826,2]
[338684195,1726871443125,-2721.87978134,0.00012826,2]
[338684197,1726871443136,-4650.0,0.00012826,2]
[338684249,1726871443418,319.75,0.00010157,2]
[338684364,1726871445504,-319.75,0.00012421,2]
[338684365,1726871445516,-401.87621433,0.00012826,2]
[338684366,1726871445528,-599.38775637,0.00012826,2]
[338684367,1726871445581,-18972.45975039,0.00012826,2]
[338684368,1726871445662,-4203.06257803,0.00012826,2]
[338684369,1726871445808,-130905.13998013,0.00012826,2]
[338684370,1726871445819,-200.0,0.00012826,2]
[338684371,1726871445829,-6087.56969568,0.0001283,7]
[338684372,1726871445838,-186.2302143,0.00012842,2]
[338684373,1726871445849,-1540.53732859,0.0001287,2]
[338684374,1726871445859,-170.54036843,0.0001289,2]
[338684375,1726871445868,-156.2770892,0.0001289,2]
[338684376,1726871445877,-150.02062703,0.0001289,2]
[338684377,1726871445887,-1578.93667481,0.0001289,2]
[338684378,1726871445896,-1578.9366748,0.00012891,2]
[338684379,1726871445907,-1578.9366748,0.00012891,2]
[338684380,1726871445916,-6135.2003,0.000129,2]
[338684381,1726871445928,-656.07455958,0.000129,2]
[338684382,1726871445938,-656.07455958,0.000129,2]
[338684383,1726871445948,-656.07455958,0.000129,2]
[338684385,1726871445957,-656.07455958,0.000129,2]
[338684386,1726871445967,-656.07455958,0.000129,2]
[338684387,1726871445979,-656.07455958,0.000129,2]
[338684388,1726871445990,-656.07455958,0.000129,2]
[338684389,1726871446000,-656.07455958,0.000129,2]
[338684390,1726871446011,-656.07455958,0.000129,2]
[338684391,1726871446022,-656.07455958,0.000129,2]
[338684392,1726871446033,-656.07455958,0.000129,2]
[338684393,1726871446042,-656.07455958,0.000129,2]
[338684394,1726871446052,-656.07455958,0.000129,2]
[338684395,1726871446063,-656.07455958,0.000129,2]
[338684396,1726871446073,-656.07455958,0.000129,2]
[338684397,1726871446085,-656.07455958,0.000129,2]
[338684398,1726871446094,-656.07455958,0.000129,2]
[338684399,1726871446105,-656.07455958,0.000129,2]
[338684400,1726871446115,-656.07455958,0.000129,2]
[338684401,1726871446124,-656.57,0.000129,2]
[338684402,1726871446135,-8500.0,0.000129,2]
[338684403,1726871446147,-980.35352578,0.000129,2]
[338684404,1726871446158,-425.0,0.000129,2]
[338684405,1726871446168,-428.14,0.000129,2]
[338684406,1726871446179,-1506.66,0.000129,2]
[338684407,1726871446189,-150.0,0.000129,2]
[338684408,1726871446200,-201.0898131,0.000129,4]
[338684409,1726871446210,-150.32282678,0.000129,2]
[338684410,1726871446220,-150.32282678,0.000129,2]
[338684411,1726871446229,-150.32282678,0.000129,2]
[338684412,1726871446238,-150.32282678,0.000129,2]
[338684413,1726871446249,-150.32282678,0.000129,2]
[338684414,1726871446259,-150.32282678,0.000129,2]
[338684415,1726871446270,-150.32282678,0.000129,2]
[338684416,1726871446280,-150.32282678,0.000129,2]
[338684417,1726871446289,-150.32282678,0.000129,2]
[338684418,1726871446299,-150.32282678,0.000129,2]
[338684419,1726871446307,-150.82,0.000129,2]
[338684420,1726871446317,-614.69097968,0.000129,2]
[338684421,1726871446326,-614.69097968,0.000129,2]
[338684422,1726871446335,-614.69097968,0.000129,2]
[338684423,1726871446344,-614.69097968,0.000129,2]
[338684424,1726871446353,-614.69097968,0.000129,2]
[338684425,1726871446362,-614.69097968,0.000129,2]
[338684426,1726871446372,-614.69097968,0.000129,2]
[338684427,1726871446382,-614.69097968,0.000129,2]
[338684428,1726871446391,-614.69097968,0.000129,2]
[338684429,1726871446403,-614.69097968,0.000129,2]
[338684430,1726871446413,-614.69097968,0.000129,2]
[338684431,1726871446423,-614.69097968,0.000129,2]
[338684432,1726871446432,-614.69097968,0.000129,2]
[338684433,1726871446443,-614.69097968,0.000129,2]
[338684434,1726871446452,-614.69097968,0.000129,2]
[338684435,1726871446462,-614.69097968,0.000129,2]
[338684436,1726871446471,-614.69097968,0.000129,2]
[338684437,1726871446480,-614.69097968,0.000129,2]
[338684438,1726871446490,-614.69097968,0.000129,2]
[338684439,1726871446499,-615.19,0.000129,2]
[338684440,1726871446509,-387.36351473,0.000129,2]
[338684441,1726871446519,-186.2302143,0.000129,2]
[338684442,1726871446528,-441.49383692,0.000129,2]
[338684443,1726871446538,-193.68772911,0.000129,2]
[338684444,1726871446547,-315.68647346,0.000129,2]
[338684445,1726871446556,-200.0,0.00012954,2]
[338684446,1726871446566,-1429.2544849,0.0001297,2]
[338684447,1726871446575,-1000.0,0.0001297,2]
[338684448,1726871446585,-500.63393959,0.0001297,2]
[338684449,1726871446598,-1000.0,0.0001297,2]
[338684450,1726871446608,-500.0,0.0001297,2]
[338684451,1726871446617,-296.3468106,0.00012973,2]
[338684452,1726871446627,-160.09948718,0.00012973,2]
[338684453,1726871446637,-500.0,0.00012973,2]
[338684454,1726871446647,-500.0,0.00012973,2]
[338684455,1726871446656,-500.0,0.00012973,2]
[338684456,1726871446666,-504.81878064,0.00012973,2]
[338684457,1726871446675,-500.0,0.00012973,2]
[338684458,1726871446684,-344.18494891,0.00012973,2]
[338684459,1726871446694,-158.53,0.0001298,2]
[338684460,1726871446703,-263.2636356,0.0001298,2]
[338684461,1726871446713,-9754.0,0.00012986,2]
[338684462,1726871446722,-1000.0,0.00012986,2]
[338684463,1726871446735,-4945.01878325,0.0001299,3]
[338684465,1726871515984,500.0,0.00011041,2]
[338684466,1726871517333,500.0,0.00011041,2]
[338684467,1726871517447,500.0,0.00011041,2]
[338684468,1726871539095,250.0,0.00012013,2]
[338684469,1726871586105,159.87,0.00011978,2]
[338684470,1726871604722,1472.84,0.00011978,2]
[338684471,1726871608254,500.0,0.00010764,2]
[338684472,1726871610575,154.8,0.00010959,2]
[338684473,1726871625830,500.0,0.00010764,2]
[338684474,1726871635567,500.0,0.00010764,2]
[338684476,1726871674591,1548.95,0.00011959,2]
[338684477,1726871731574,500.0,0.00010764,2]
[338684478,1726871754210,600.0,0.00010764,2]
[338684479,1726871763712,169.46,0.00011932,2]
[338684480,1726871771171,500.0,0.00010764,2]
[338684481,1726871897541,174.54,9.648e-05,2]
[338684482,1726871901051,563.0,0.00010764,2]
[338684483,1726871909816,513.55,0.000149,31]
[338684484,1726871909880,513.55,0.000149,31]
[338684485,1726871909987,513.55,0.000149,31]
[338684486,1726871910261,513.55,0.000149,31]
[338684487,1726871910298,513.55,0.000149,31]
[338684488,1726871910335,513.55,0.000149,31]
[338684489,1726871910366,513.55,0.000149,31]
[338684490,1726871910395,513.55,0.000149,31]
[338684491,1726871910425,513.55,0.000149,31]
[338684492,1726871910464,513.55,0.000149,31]
[338684493,1726871910494,513.55,0.000149,31]
[338684494,1726871910538,513.55,0.000149,31]
[338684495,1726871910580,513.55,0.000149,31]
[338684496,1726871910641,513.55,0.000149,31]
[338684497,1726871910698,513.55,0.000149,31]
[338684498,1726871910762,513.55,0.000149,31]
[338684499,1726871931607,1100.24423802,0.0001203,2]
[338684500,1726871996008,760.52,0.00011948,2]
[338684503,1726872024631,310.73,0.00010034,2]
[338684504,1726872051964,733.49615868,0.00011988,2]
[338684505,1726872056958,733.49615868,0.00012009,2]
[338684506,1726872061969,733.49615868,0.0001203,2]
[338684507,1726872066070,200.0,0.00011925,2]
[338684508,1726872090965,250.0,0.00011925,2]
[338684513,1726872198093,154.0,0.00011926,2]
[338684517,1726872220822,275.92,0.00011917,2]
[338684519,1726872254385,425.68,0.00011902,2]
[338684520,1726872261818,5219.98,0.00012,5]
[338684521,1726872286140,158.2,0.00010959,2]
[338684524,1726872359800,-150.0,0.00012034,2]
[338684525,1726872359824,-302.4,0.00012088,2]
[338684526,1726872359844,-250.0,0.0001213,2]
[338684527,1726872359864,-600.0,0.00012134,2]
[338684528,1726872359886,-191.93,0.00012168,2]
[338684529,1726872359909,-310.73,0.00012298,2]
[338684530,1726872359930,-155.0,0.0001263,2]
[338684531,1726872360146,-241.9434,0.00012684,2]
[338684532,1726872360168,-500.0,0.00012723,2]
[338684533,1726872405321,500.0,0.00010764,2]
[338684534,1726872407489,500.0,0.00012134,2]
[338684535,1726872437098,-666.93157624,0.0001273,2]
[338684536,1726872483506,758.08,0.00011965,2]
[338684537,1726872498885,-384.40409585,0.0001273,2]
[338684538,1726872498906,-1059.64195389,0.0001273,2]
[338684539,1726872522373,431.42,0.000149,31]
[338684540,1726872522429,431.42,0.000149,31]
[338684541,1726872522490,431.42,0.000149,31]
[338684542,1726872522558,431.42,0.000149,31]
[338684543,1726872522607,431.42,0.000149,31]
[338684544,1726872522679,431.42,0.000149,31]
[338684545,1726872522790,431.42,0.000149,31]
[338684546,1726872522848,431.42,0.000149,31]
[338684547,1726872522910,431.42,0.000149,31]
[338684548,1726872522967,431.42,0.000149,31]
[338684549,1726872523028,431.42,0.000149,31]
[338684550,1726872523088,431.42,0.000149,31]
[338684551,1726872523152,431.42,0.000149,31]
[338684552,1726872523205,431.42,0.000149,31]
[338684553,1726872523270,431.42,0.000149,31]
[338684554,1726872523330,431.42,0.000149,31]
[338684563,1726872631766,-707.042,0.0001278,2]
[338684564,1726872631775,-151.561,0.0001278,2]
[338684565,1726872631785,-500.0,0.00012803,2]
[338684566,1726872631795,-200.0,0.00012803,2]
[338684567,1726872631805,-181.397,0.00012881,2]
[338684568,1726872631816,-318.603,0.00012881,2]
[338684569,1726872631826,-677.75,0.00012889,2]
[338684570,1726872631835,-150.0,0.00012889,2]
[338684571,1726872631845,-1693.91986033,0.0001289,2]
[338684572,1726872631855,-308.69755859,0.0001289,2]
[338684573,1726872631865,-349.1308956,0.0001289,2]
[338684574,1726872631877,-328.6191044,0.0001289,2]
[338684575,1726872631887,-661.14047156,0.0001289,2]
[338684576,1726872631898,-16.60952844,0.0001289,2]
[338684577,1726872631908,-677.75,0.0001289,2]
[338684578,1726872631918,-2115.95604511,0.0001289,2]
[338684579,1726872631930,-1032.01313129,0.0001289,2]
[338684580,1726872631943,-2425.5691086,0.0001289,2]
[338684581,1726872631958,-8568.89612749,0.0001289,2]
[338684582,1726872631973,-250.33780553,0.0001289,2]
[338684583,1726872631985,-499.60047608,0.0001289,2]
[338684584,1726872631997,-871.5527439,0.0001289,2]
[338684585,1726872632009,-2737.33492461,0.0001289,2]
[338684586,1726872632020,-1587.35583697,0.0001289,2]
[338684587,1726872632036,-8293.58760042,0.0001289,2]
[338684588,1726872632045,-176.865,0.0001289,2]
[338684589,1726872632055,-401.94,0.0001289,2]
[338684590,1726872632065,-1000.0,0.0001289,2]
[338684591,1726872632074,-588.9124,0.0001289,2]
[338684592,1726872632084,-2122.6584,0.0001289,2]
[338684593,1726872632094,-2500.0,0.0001289,2]
[338684594,1726872632104,-1693.9198603,0.00012891,2]